fUST/lending_fUST_20250821
["ID","MTS","AMOUNT","RATE_DAILY","PERIOD"]
[380476548,1755789051390,-480.0,0.00022191,3]
[380476549,1755789051400,-480.0,0.00022191,3]
[380476550,1755789051410,-1210.39,0.00022191,3]
[380476551,1755789051420,-480.0,0.00022191,3]
[380476552,1755789051430,-371.21102599,0.00022191,3]
[380476553,1755789051440,-480.0,0.00022191,3]
[380476554,1755789051450,-480.0,0.00022191,3]
[380476555,1755789051460,-2356.99,0.00022191,3]
[380476556,1755789051470,-177.65047291,0.00022191,3]
[380476557,1755789051482,-480.0,0.00022191,3]
[380476558,1755789051492,-714.13,0.00022191,3]
[380476559,1755789051502,-480.0,0.00022191,3]
[380476560,1755789051512,-480.0,0.00022191,3]
[380476561,1755789051522,-4962.09,0.00022191,3]
[380476562,1755789051532,-1257.16,0.00022191,3]
[380476563,1755789051541,-257.14184334,0.00022191,3]
[380476564,1755789051551,-480.0,0.00022191,3]
[380476565,1755789051560,-480.0,0.00022191,3]
[380476566,1755789051570,-751.37,0.00022191,3]
[380476567,1755789051580,-541.69,0.00022191,3]
[380476568,1755789051589,-1034.49,0.00022191,3]
[380476569,1755789051739,-480.0,0.00022191,3]
[380476570,1755789051748,-823.84,0.00022191,3]
[380476571,1755789051757,-480.0,0.00022191,3]
[380476572,1755789051767,-480.0,0.00022191,3]
[380476573,1755789051776,-2554.97,0.00022191,3]
[380476574,1755789051786,-575.07,0.00022191,3]
[380476575,1755789051796,-480.0,0.00022191,3]
[380476576,1755789051805,-480.0,0.00022191,3]
[380476577,1755789051815,-804.12,0.00022191,3]
[380476578,1755789051825,-2279.03,0.00022191,3]
[380476579,1755789051835,-983.22,0.00022191,3]
[380476580,1755789051845,-480.0,0.00022191,3]
[380476581,1755789051854,-371.6961619,0.00022191,3]
[380476582,1755789051864,-480.0,0.00022191,3]
[380476583,1755789051874,-480.0,0.00022191,3]
[380476584,1755789051885,-723.45,0.00022191,3]
[380476585,1755789051894,-480.0,0.00022191,3]
[380476586,1755789051904,-480.0,0.00022191,3]
[380476587,1755789051914,-480.0,0.00022191,3]
[380476588,1755789051924,-3325.88,0.00022191,3]
[380476589,1755789051934,-480.0,0.00022191,3]
[380476590,1755789051944,-1928.42,0.00022191,3]
[380476591,1755789051954,-5464.66,0.00022191,3]
[380476592,1755789051964,-480.0,0.00022191,3]
[380476593,1755789051974,-480.0,0.00022191,3]
[380476594,1755789051985,-480.0,0.00022191,3]
[380476595,1755789051995,-480.0,0.00022191,3]
[380476596,1755789052004,-480.0,0.00022191,3]
[380476597,1755789052014,-480.0,0.00022191,3]
[380476598,1755789052024,-480.0,0.00022191,3]
[380476599,1755789052033,-480.0,0.00022191,3]
[380476600,1755789052043,-14424.21,0.00022191,3]
[380476601,1755789052053,-480.0,0.00022191,3]
[380476602,1755789052062,-187.94482302,0.00022191,3]
[380476603,1755789052071,-1177.23,0.00022191,3]
[380476604,1755789052081,-480.0,0.00022191,3]
[380476605,1755789052090,-769.08,0.00022191,3]
[380476606,1755789052099,-480.0,0.00022191,3]
[380476607,1755789052109,-587.76,0.00022191,3]
[380476608,1755789052118,-4935.04,0.00022191,3]
[380476609,1755789052129,-480.0,0.00022191,3]
[380476610,1755789052138,-1184.81,0.00022191,3]
[380476611,1755789052148,-2603.06,0.00022191,3]
[380476612,1755789052158,-480.0,0.00022191,3]
[380476613,1755789052168,-561.71,0.00022191,3]
[380476614,1755789052178,-480.0,0.00022191,3]
[380476615,1755789052189,-480.0,0.00022191,3]
[380476616,1755789052198,-480.0,0.00022191,3]
[380476617,1755789052219,-1024.11,0.00022191,3]
[380476618,1755789052241,-480.0,0.00022191,3]
[380476619,1755789052256,-6832.83,0.00022191,3]
[380476620,1755789052268,-480.0,0.00022191,3]
[380476621,1755789052280,-480.0,0.00022191,3]
[380476622,1755789052293,-461.13500303,0.00022191,3]
[380476623,1755789052304,-9670.29,0.00022191,3]
[380476624,1755789052314,-480.0,0.00022191,3]
[380476625,1755789052325,-460.0,0.00022191,3]
[380476626,1755789052336,-480.0,0.00022191,3]
[380476627,1755789052350,-2069.39,0.00022191,3]
[380476628,1755789052361,-564.67,0.00022191,3]
[380476629,1755789052372,-480.0,0.00022191,3]
[380476630,1755789052383,-480.0,0.00022191,3]
[380476631,1755789052393,-1912.91,0.00022191,3]
[380476632,1755789052404,-480.0,0.00022191,3]
[380476633,1755789052414,-4899.41,0.00022191,3]
[380476634,1755789052425,-292.12833219,0.00022191,3]
[380476635,1755789052437,-964.21,0.00022191,3]
[380476636,1755789052447,-2638.48,0.00022191,3]
[380476637,1755789052457,-480.0,0.00022191,3]
[380476638,1755789052467,-1162.1,0.00022191,3]
[380476639,1755789052477,-739.44,0.00022191,3]
[380476640,1755789052487,-837.52,0.00022191,3]
[380476641,1755789052497,-754.79,0.00022191,3]
[380476642,1755789052507,-480.0,0.00022191,3]
[380476643,1755789052517,-497.84,0.00022191,3]
[380476644,1755789052527,-480.0,0.00022191,3]
[380476645,1755789052537,-1202.36,0.00022191,3]
[380476646,1755789052547,-460.0,0.00022191,3]
[380476647,1755789052556,-611.41,0.00022191,3]
[380476648,1755789052567,-656.61,0.00022191,3]
[380476649,1755789052577,-10927.7,0.00022191,3]
[380476650,1755789052587,-2945.46,0.00022191,3]
[380476651,1755789052597,-480.0,0.00022191,3]
[380476652,1755789052608,-507.72,0.00022191,3]
[380476653,1755789052619,-589.79,0.00022191,3]
[380476654,1755789052629,-870.09,0.00022191,3]
[380476655,1755789052639,-624.04,0.00022191,3]
[380476656,1755789052648,-480.0,0.00022191,3]
[380476657,1755789052658,-579.45,0.00022191,3]
[380476658,1755789052668,-1355.28,0.00022191,3]
[380476659,1755789052678,-1014.59,0.00022191,3]
[380476660,1755789052688,-480.0,0.00022191,3]
[380476661,1755789052698,-606.37,0.00022191,3]
[380476662,1755789052708,-480.0,0.00022191,3]
[380476663,1755789052718,-864.73,0.00022191,3]
[380476664,1755789052729,-794.55,0.00022191,3]
[380476665,1755789052739,-480.0,0.00022191,3]
[380476666,1755789052750,-480.0,0.00022191,3]
[380476667,1755789052759,-1939.23,0.00022191,3]
[380476668,1755789052769,-525.16,0.00022191,3]
[380476669,1755789052779,-480.0,0.00022191,3]
[380476670,1755789052789,-480.0,0.00022191,3]
[380476671,1755789052799,-1137.21,0.00022191,3]
[380476672,1755789052808,-480.0,0.00022191,3]
[380476673,1755789052818,-480.0,0.00022191,3]
[380476674,1755789052828,-10271.99,0.00022191,3]
[380476675,1755789052838,-480.0,0.00022191,3]
[380476676,1755789052847,-719.61,0.00022191,3]
[380476677,1755789052856,-2157.07,0.00022191,3]
[380476678,1755789052866,-1447.74,0.00022191,3]
[380476679,1755789052876,-7022.46,0.00022191,3]
[380476680,1755789052886,-480.0,0.00022191,3]
[380476681,1755789052896,-695.56,0.00022191,3]
[380476682,1755789052906,-480.0,0.00022191,3]
[380476683,1755789052916,-480.0,0.00022191,3]
[380476684,1755789052925,-1854.76,0.00022191,3]
[380476685,1755789052935,-1788.7,0.00022191,3]
[380476686,1755789052945,-584.71,0.00022191,3]
[380476687,1755789052955,-1526.4,0.00022191,3]
[380476688,1755789052965,-480.0,0.00022191,3]
[380476689,1755789052975,-480.0,0.00022191,3]
[380476690,1755789052986,-480.0,0.00022191,3]
[380476691,1755789052996,-480.0,0.00022191,3]
[380476692,1755789053006,-480.0,0.00022191,3]
[380476693,1755789053016,-480.0,0.00022191,3]
[380476694,1755789053026,-440.0,0.00022191,3]
[380476695,1755789053036,-1856.57,0.00022191,3]
[380476696,1755789053045,-506.49,0.00022191,3]
[380476697,1755789053055,-481.61662506,0.00022191,3]
[380476698,1755789053065,-480.0,0.00022191,3]
[380476699,1755789053075,-1511.68,0.00022191,3]
[380476700,1755789053084,-481.65842489,0.00022191,3]
[380476701,1755789053094,-1142.51,0.00022191,3]
[380476702,1755789053104,-480.0,0.00022191,3]
[380476703,1755789053113,-702.31,0.00022191,3]
[380476704,1755789053123,-367.26629957,0.00022191,3]
[380476705,1755789053132,-480.0,0.00022191,3]
[380476706,1755789053142,-480.0,0.00022191,3]
[380476707,1755789053151,-480.0,0.00022191,3]
[380476708,1755789053160,-594.14,0.00022191,3]
[380476709,1755789053170,-2638.84,0.00022191,3]
[380476710,1755789053180,-480.0,0.00022191,3]
[380476711,1755789053189,-3025.78,0.00022191,3]
[380476712,1755789053199,-1133.26,0.00022191,3]
[380476713,1755789053209,-556.31,0.00022191,3]
[380476714,1755789053219,-1919.83,0.00022191,3]
[380476715,1755789053230,-960.8,0.00022191,3]
[380476716,1755789053239,-582.14,0.00022191,3]
[380476717,1755789053249,-480.0,0.00022191,3]
[380476718,1755789053261,-1528.09,0.00022191,3]
[380476719,1755789053271,-2818.16,0.00022191,3]
[380476720,1755789053281,-480.0,0.00022191,3]
[380476721,1755789053291,-1031.71,0.00022191,3]
[380476722,1755789053302,-4267.79,0.00022191,3]
[380476723,1755789053312,-7361.83,0.00022191,3]
[380476724,1755789053323,-480.0,0.00022191,3]
[380476725,1755789053333,-2447.45,0.00022191,3]
[380476726,1755789053343,-15815.79,0.00022191,3]
[380476727,1755789053352,-480.0,0.00022191,3]
[380476728,1755789053362,-2960.58,0.00022191,3]
[380476729,1755789053372,-480.0,0.00022191,3]
[380476730,1755789053381,-480.0,0.00022191,3]
[380476731,1755789053391,-2132.58,0.00022191,3]
[380476732,1755789053401,-3234.19,0.00022191,3]
[380476733,1755789053410,-347.26916722,0.00022191,3]
[380476734,1755789053419,-480.0,0.00022191,3]
[380476735,1755789053429,-5243.78,0.00022191,3]
[380476736,1755789053438,-480.0,0.00022191,3]
[380476737,1755789053448,-480.0,0.00022191,3]
[380476738,1755789053457,-1499.06,0.00022191,3]
[380476739,1755789053467,-1205.34,0.00022191,3]
[380476740,1755789053476,-480.0,0.00022191,3]
[380476741,1755789053489,-480.0,0.00022191,3]
[380476742,1755789053498,-4424.32,0.00022191,3]
[380476743,1755789053508,-5276.46,0.00022191,3]
[380476744,1755789053518,-480.0,0.00022191,3]
[380476745,1755789053528,-480.0,0.00022191,3]
[380476746,1755789053539,-480.0,0.00022191,3]
[380476747,1755789053548,-1513.89,0.00022191,3]
[380476748,1755789053558,-153.8265696,0.00022192,2]
[380476749,1755789053567,-151.0,0.000222,7]
[380476750,1755789053576,-4697.92316511,0.0002222,2]
[380476751,1755789053586,-420.0,0.00022307,2]
[380476752,1755789053596,-4032.58,0.0002236,3]
[380476753,1755789053605,-2243.96,0.0002236,3]
[380476754,1755789053615,-1121.98,0.0002236,3]
[380476755,1755789053624,-561.0,0.0002236,3]
[380476756,1755789053634,-198.0,0.00022365,3]
[380476757,1755789053644,-419.0,0.00022365,3]
[380476758,1755789053653,-349.0,0.00022365,3]
[380476759,1755789053663,-1566.95497119,0.00022365,2]
[380476760,1755789053672,-504.0,0.00022413,2]
[380476761,1755789053682,-151.0,0.00022464,2]
[380476762,1755789053691,-151.0,0.00022464,2]
[380476763,1755789053700,-500.0,0.00022464,2]
[380476764,1755789053710,-1300.0,0.00022465,2]
[380476765,1755789053720,-817.52,0.00022465,3]
[380476766,1755789053729,-480.0,0.00022465,3]
[380476767,1755789053741,-352.84912175,0.00022465,3]
[380476768,1755789053750,-702.92,0.00022465,3]
[380476769,1755789053760,-480.0,0.00022465,3]
[380476770,1755789053769,-671.78,0.00022465,3]
[380476771,1755789053779,-480.0,0.00022465,3]
[380476772,1755789053788,-480.0,0.00022465,3]
[380476773,1755789053798,-480.0,0.00022465,3]
[380476774,1755789053808,-480.0,0.00022465,3]
[380476775,1755789053817,-1701.76,0.00022465,3]
[380476776,1755789053827,-933.41,0.00022465,3]
[380476777,1755789053837,-1374.91,0.00022465,3]
[380476778,1755789053846,-480.0,0.00022465,3]
[380476779,1755789053857,-334.64939103,0.00022465,3]
[380476780,1755789053866,-1127.93,0.00022465,3]
[380476781,1755789053875,-462.47836236,0.00022465,3]
[380476782,1755789053885,-480.0,0.00022465,3]
[380476783,1755789053895,-480.0,0.00022465,3]
[380476784,1755789053905,-480.0,0.00022465,3]
[380476785,1755789053915,-480.0,0.00022465,3]
[380476786,1755789053925,-422.55965697,0.00022465,3]
[380476787,1755789053935,-480.0,0.00022465,3]
[380476788,1755789053945,-480.0,0.00022465,3]
[380476789,1755789053955,-580.22,0.00022465,3]
[380476790,1755789053964,-480.0,0.00022465,3]
[380476791,1755789053974,-663.42,0.00022465,3]
[380476792,1755789053985,-480.0,0.00022465,3]
[380476793,1755789053995,-480.0,0.00022465,3]
[380476794,1755789054006,-480.0,0.00022465,3]
[380476795,1755789054016,-480.0,0.00022465,3]
[380476796,1755789054026,-480.0,0.00022465,3]
[380476797,1755789054036,-480.0,0.00022465,3]
[380476798,1755789054045,-480.0,0.00022465,3]
[380476799,1755789054054,-1369.71,0.00022465,3]
[380476800,1755789054064,-480.0,0.00022465,3]
[380476801,1755789054073,-480.0,0.00022465,3]
[380476802,1755789054082,-480.0,0.00022465,3]
[380476803,1755789054092,-480.0,0.00022465,3]
[380476804,1755789054101,-480.0,0.00022465,3]
[380476805,1755789054111,-480.0,0.00022465,3]
[380476806,1755789054120,-480.0,0.00022465,3]
[380476807,1755789054130,-632.51,0.00022465,3]
[380476808,1755789054139,-480.0,0.00022465,3]
[380476809,1755789054149,-480.0,0.00022465,3]
[380476810,1755789054159,-480.0,0.00022465,3]
[380476811,1755789054168,-480.0,0.00022465,3]
[380476812,1755789054177,-1011.13,0.00022465,3]
[380476813,1755789054186,-480.0,0.00022465,3]
[380476814,1755789054195,-1139.78,0.00022465,2]
[380476815,1755789054204,-480.0,0.00022465,3]
[380476816,1755789054213,-461.78100396,0.00022465,3]
[380476817,1755789054222,-480.0,0.00022465,3]
[380476818,1755789054232,-480.0,0.00022465,3]
[380476819,1755789054242,-495.8,0.00022465,3]
[380476820,1755789054252,-480.0,0.00022465,3]
[380476821,1755789054263,-481.31,0.00022465,3]
[380476822,1755789054274,-1469.14,0.00022465,3]
[380476823,1755789054283,-480.0,0.00022465,3]
[380476824,1755789054293,-480.0,0.00022465,3]
[380476825,1755789054303,-499.95,0.00022465,3]
[380476826,1755789054312,-480.0,0.00022465,3]
[380476827,1755789054321,-480.0,0.00022465,3]
[380476828,1755789054330,-488.08666037,0.00022465,3]
[380476829,1755789054341,-480.0,0.00022465,3]
[380476830,1755789054351,-480.0,0.00022465,3]
[380476831,1755789054360,-561.79,0.00022465,3]
[380476832,1755789054371,-610.79517868,0.00022465,3]
[380476833,1755789054515,-480.0,0.00022465,3]
[380476834,1755789054541,-480.0,0.00022465,3]
[380476835,1755789054551,-480.0,0.00022465,3]
[380476836,1755789054562,-480.0,0.00022465,3]
[380476837,1755789054572,-480.0,0.00022465,3]
[380476838,1755789054583,-1749.13,0.00022465,3]
[380476839,1755789054593,-480.0,0.00022465,3]
[380476840,1755789054603,-480.0,0.00022465,3]
[380476841,1755789054612,-480.0,0.00022465,3]
[380476842,1755789054622,-480.0,0.00022465,3]
[380476843,1755789054632,-480.0,0.00022465,3]
[380476844,1755789054641,-480.0,0.00022465,3]
[380476845,1755789054650,-480.0,0.00022465,3]
[380476846,1755789054659,-953.69,0.00022465,3]
[380476847,1755789054669,-480.0,0.00022465,3]
[380476848,1755789054679,-597.44,0.00022465,3]
[380476849,1755789054688,-480.0,0.00022465,3]
[380476850,1755789054698,-480.0,0.00022465,3]
[380476851,1755789054708,-480.0,0.00022465,3]
[380476852,1755789054717,-480.0,0.00022465,3]
[380476853,1755789054726,-480.0,0.00022465,3]
[380476854,1755789054736,-802.61,0.00022465,3]
[380476855,1755789054746,-480.0,0.00022465,3]
[380476856,1755789054755,-480.0,0.00022465,3]
[380476857,1755789054764,-480.0,0.00022465,3]
[380476858,1755789054774,-480.0,0.00022465,3]
[380476859,1755789054784,-860.79,0.00022465,3]
[380476860,1755789054793,-1163.51,0.00022465,3]
[380476861,1755789054803,-480.0,0.00022465,3]
[380476862,1755789054812,-480.0,0.00022465,3]
[380476863,1755789054822,-225.65386323,0.00022465,3]
[380476864,1755789054831,-583.48,0.00022465,3]
[380476865,1755789054840,-480.0,0.00022465,3]
[380476866,1755789054850,-480.0,0.00022465,3]
[380476867,1755789054859,-480.0,0.00022465,3]
[380476868,1755789054869,-480.0,0.00022465,3]
[380476869,1755789054878,-480.0,0.00022465,3]
[380476870,1755789054889,-480.0,0.00022465,3]
[380476871,1755789054898,-2215.93,0.00022465,3]
[380476872,1755789054908,-480.0,0.00022465,3]
[380476873,1755789054918,-480.0,0.00022465,3]
[380476874,1755789054927,-509.13,0.00022465,3]
[380476875,1755789054937,-556.28,0.00022465,3]
[380476876,1755789054946,-480.0,0.00022465,3]
[380476877,1755789054956,-480.0,0.00022465,3]
[380476878,1755789054966,-1064.18,0.00022465,3]
[380476879,1755789054976,-465.50403139,0.00022465,3]
[380476880,1755789054987,-1420.18,0.00022465,3]
[380476881,1755789054997,-480.0,0.00022465,3]
[380476882,1755789055007,-480.0,0.00022465,3]
[380476883,1755789055017,-851.64,0.00022465,3]
[380476884,1755789055026,-1315.57,0.00022465,3]
[380476885,1755789055036,-2237.66,0.00022465,3]
[380476886,1755789055045,-480.0,0.00022465,3]
[380476887,1755789055055,-1026.9,0.00022465,3]
[380476888,1755789055064,-480.0,0.00022465,3]
[380476889,1755789055074,-516.96,0.00022465,3]
[380476890,1755789055084,-299.19049466,0.00022465,3]
[380476891,1755789055093,-1339.8,0.00022465,3]
[380476892,1755789055103,-480.0,0.00022465,3]
[380476893,1755789055112,-865.06,0.00022465,3]
[380476894,1755789055123,-831.74,0.00022465,3]
[380476895,1755789055133,-649.01,0.00022465,3]
[380476896,1755789055142,-480.0,0.00022465,3]
[380476897,1755789055152,-480.0,0.00022465,3]
[380476898,1755789055162,-1485.54,0.00022465,3]
[380476899,1755789055171,-480.0,0.00022465,3]
[380476900,1755789055181,-480.0,0.00022465,3]
[380476901,1755789055191,-480.0,0.00022465,3]
[380476902,1755789055200,-480.0,0.00022465,3]
[380476903,1755789055210,-715.35,0.00022465,3]
[380476904,1755789055220,-480.0,0.00022465,3]
[380476905,1755789055230,-480.0,0.00022465,3]
[380476906,1755789055240,-480.0,0.00022465,3]
[380476907,1755789055250,-480.0,0.00022465,3]
[380476908,1755789055267,-766.89,0.00022465,3]
[380476909,1755789055277,-562.13,0.00022465,3]
[380476910,1755789055287,-619.73,0.00022465,3]
[380476911,1755789055296,-480.0,0.00022465,3]
[380476912,1755789055307,-598.36,0.00022465,3]
[380476913,1755789055317,-480.0,0.00022465,3]
[380476914,1755789055327,-483.41489811,0.00022465,3]
[380476915,1755789055337,-480.0,0.00022465,3]
[380476916,1755789055347,-515.07,0.00022465,3]
[380476917,1755789055356,-1027.95,0.00022465,3]
[380476918,1755789055366,-683.41,0.00022465,3]
[380476919,1755789055375,-500.0,0.00022465,3]
[380476920,1755789055385,-480.0,0.00022465,3]
[380476921,1755789055394,-693.8,0.00022465,3]
[380476922,1755789055403,-480.0,0.00022465,3]
[380476923,1755789055413,-480.0,0.00022465,3]
[380476924,1755789055423,-728.12,0.00022465,3]
[380476925,1755789055432,-480.0,0.00022465,3]
[380476926,1755789055442,-461.57491001,0.00022465,3]
[380476927,1755789055452,-1124.11,0.00022465,3]
[380476928,1755789055462,-687.09,0.00022465,3]
[380476929,1755789055473,-459.45208057,0.00022465,3]
[380476930,1755789055482,-628.78,0.00022465,3]
[380476931,1755789055494,-480.0,0.00022465,3]
[380476932,1755789055504,-772.79,0.00022465,3]
[380476933,1755789055515,-480.0,0.00022465,3]
[380476934,1755789055525,-480.0,0.00022465,3]
[380476935,1755789055534,-964.6,0.00022465,3]
[380476936,1755789055544,-480.0,0.00022465,3]
[380476937,1755789055554,-480.0,0.00022465,3]
[380476938,1755789055564,-480.0,0.00022465,3]
[380476939,1755789055574,-642.98,0.00022465,3]
[380476940,1755789055584,-480.0,0.00022465,3]
[380476941,1755789055593,-480.0,0.00022465,3]
[380476942,1755789055602,-480.0,0.00022465,3]
[380476943,1755789055612,-480.0,0.00022465,3]
[380476944,1755789055621,-648.05,0.00022465,3]
[380476945,1755789055631,-480.0,0.00022465,3]
[380476946,1755789055641,-964.31,0.00022465,3]
[380476947,1755789055651,-480.0,0.00022465,3]
[380476948,1755789055660,-784.31,0.00022465,3]
[380476949,1755789055670,-480.0,0.00022465,3]
[380476950,1755789055680,-480.0,0.00022465,3]
[380476951,1755789055690,-511.61,0.00022465,3]
[380476952,1755789055699,-480.0,0.00022465,3]
[380476953,1755789055709,-768.74,0.00022465,3]
[380476954,1755789055719,-480.0,0.00022465,3]
[380476955,1755789055728,-2198.28,0.00022465,3]
[380476956,1755789055739,-480.0,0.00022465,3]
[380476957,1755789055748,-2604.65,0.00022465,3]
[380476958,1755789055758,-480.0,0.00022465,3]
[380476959,1755789055768,-839.68,0.00022465,3]
[380476960,1755789055778,-480.0,0.00022465,3]
[380476961,1755789055788,-2140.84,0.00022465,3]
[380476962,1755789055798,-480.0,0.00022465,3]
[380476963,1755789055807,-480.0,0.00022465,3]
[380476964,1755789055816,-480.0,0.00022465,3]
[380476965,1755789055826,-480.0,0.00022465,3]
[380476966,1755789055835,-662.78,0.00022465,3]
[380476967,1755789055845,-480.0,0.00022465,3]
[380476968,1755789055856,-1345.06,0.00022465,3]
[380476969,1755789055866,-576.59,0.00022465,3]
[380476970,1755789055875,-480.0,0.00022465,3]
[380476971,1755789055884,-1058.94,0.00022465,3]
[380476972,1755789055894,-556.07,0.00022465,3]
[380476973,1755789055904,-480.0,0.00022465,3]
[380476974,1755789055913,-480.0,0.00022465,3]
[380476975,1755789055922,-1884.35,0.00022465,3]
[380476976,1755789055932,-480.0,0.00022465,3]
[380476977,1755789055942,-438.48593145,0.00022465,3]
[380476978,1755789055952,-1060.69,0.00022465,3]
[380476979,1755789055961,-602.83,0.00022465,3]
[380476980,1755789055970,-2493.42,0.00022465,3]
[380476981,1755789055979,-480.0,0.00022465,3]
[380476982,1755789055988,-912.2,0.00022465,3]
[380476983,1755789055998,-958.22,0.00022465,3]
[380476984,1755789056007,-936.89,0.00022465,3]
[380476985,1755789056017,-625.91,0.00022465,3]
[380476986,1755789056027,-1577.55,0.00022465,3]
[380476987,1755789056035,-480.0,0.00022465,3]
[380476988,1755789056045,-480.0,0.00022465,3]
[380476989,1755789056054,-2221.72,0.00022465,3]
[380476990,1755789056064,-922.97,0.00022465,3]
[380476991,1755789056073,-480.0,0.00022465,3]
[380476992,1755789056083,-480.0,0.00022465,3]
[380476993,1755789056092,-480.0,0.00022465,3]
[380476994,1755789056102,-788.36,0.00022465,3]
[380476995,1755789056111,-1813.79,0.00022465,3]
[380476996,1755789056121,-480.0,0.00022465,3]
[380476997,1755789056131,-480.0,0.00022465,3]
[380476998,1755789056141,-734.7,0.00022465,3]
[380476999,1755789056151,-480.0,0.00022465,3]
[380477000,1755789056160,-792.44,0.00022465,3]
[380477001,1755789056170,-480.0,0.00022465,3]
[380477002,1755789056180,-1248.42,0.00022465,3]
[380477003,1755789056189,-480.0,0.00022465,3]
[380477004,1755789056198,-756.71,0.00022465,3]
[380477005,1755789056208,-480.0,0.00022465,3]
[380477006,1755789056217,-480.0,0.00022465,3]
[380477007,1755789056227,-527.42,0.00022465,3]
[380477008,1755789056236,-480.0,0.00022465,3]
[380477009,1755789056245,-400.04817312,0.00022465,3]
[380477010,1755789056255,-480.0,0.00022465,3]
[380477011,1755789056269,-480.0,0.00022465,3]
[380477012,1755789056279,-1111.35,0.00022465,3]
[380477013,1755789056288,-814.97,0.00022465,3]
[380477014,1755789056298,-564.85,0.00022465,3]
[380477015,1755789056308,-666.16,0.00022465,3]
[380477016,1755789056318,-651.49,0.00022465,3]
[380477017,1755789056328,-1153.78,0.00022465,3]
[380477018,1755789056341,-691.17,0.00022465,3]
[380477019,1755789056352,-480.0,0.00022465,3]
[380477020,1755789056361,-480.0,0.00022465,3]
[380477021,1755789056371,-480.0,0.00022465,3]
[380477022,1755789056380,-1210.39,0.00022465,3]
[380477023,1755789056390,-480.0,0.00022465,3]
[380477024,1755789056399,-2356.99,0.00022465,3]
[380477025,1755789056409,-402.6465633,0.00022465,3]
[380477026,1755789056419,-714.13,0.00022465,3]
[380477027,1755789056429,-480.0,0.00022465,3]
[380477028,1755789056438,-480.0,0.00022465,3]
[380477029,1755789056449,-4962.09,0.00022465,3]
[380477030,1755789056459,-1257.16,0.00022465,3]
[380477031,1755789056468,-480.0,0.00022465,3]
[380477032,1755789056477,-480.0,0.00022465,3]
[380477033,1755789056489,-751.37,0.00022465,3]
[380477034,1755789056499,-541.69,0.00022465,3]
[380477035,1755789056510,-1034.49,0.00022465,3]
[380477036,1755789056520,-480.0,0.00022465,3]
[380477037,1755789056529,-823.84,0.00022465,3]
[380477038,1755789056540,-480.0,0.00022465,3]
[380477039,1755789056550,-2554.97,0.00022465,3]
[380477040,1755789056560,-575.07,0.00022465,3]
[380477041,1755789056569,-341.62846084,0.00022465,3]
[380477042,1755789056579,-804.12,0.00022465,3]
[380477043,1755789056588,-2279.03,0.00022465,3]
[380477044,1755789056597,-983.22,0.00022465,3]
[380477045,1755789056607,-480.0,0.00022465,3]
[380477046,1755789056616,-723.45,0.00022465,3]
[380477047,1755789056625,-480.0,0.00022465,3]